Cogmind - Beta 16.1 @@@ ROGUE MODE // 2026.04.29 @ 23:34:05 Player: SunShine214 Result: Destroyed by S-10 Pest with Light Assault Rifle Performance ------------- Evolutions (2) 1000 Regions Visited (3) 600 Robots Destroyed (42) 210 Value Destroyed (1063) 1063 Prototype IDs (0) 0 Alien Tech Used (0) 0 Bonus (-43) -43 TOTAL SCORE: 2830 Bonus ------- High Alert Combat Kills 2 Friendly Fire -45 Cogmind --------- Core Integrity 0/550 Matter 252/300 Energy 99/100 System Corruption 3% Temperature Cool (0) Movement Core (50) Location -8/Materials Parts ------- > --- POWER (1) -------- (None) > --- PROPULSION (3) --- (None) > --- UTILITY (4) ------ (None) > --- WEAPON (3) ------- (None) > --- INVENTORY (5) ---- 1B-0RG's Assimilator Peak State ------------ > --- POWER ------------ Light Angular Momentum Engine > --- PROPULSION ------- Carbon-fiber Leg Myomer Leg > --- UTILITY ---------- Large Storage Unit Advanced Weight Redist. System Sensor Array Medium Armor Plating > --- WEAPON ----------- Heavy Ion Cannon Bore Cannon Mace > --- INVENTORY -------- Flightbrick Large Storage Unit Medium Armor Plating Medium Armor Plating Grenade Launcher Grenade Launcher 1B-0RG's Assimilator [Rating: 43] Favorites ----------- Power Light Ion Engine Engine Light Ion Engine Power Core Neutrino Core Propulsion Light Treads Treads Light Treads Leg Myomer Leg Utility Large Storage Unit Device Seismic Detector Storage Large Storage Unit Protection Medium Armor Plating Weapon Mace Energy Gun EM Shotgun Energy Cannon Heavy Ion Cannon Ballistic Cannon Bore Cannon Launcher Grenade Launcher Impact Weapon Mace Build | -11 -10 -10 -8 ------- Run | Yrd Mat Sub Mat Slots Evolved 4 | . . . 4 Power . | . . . . Propulsion 1 | . . . 1 Utility 2 | . . . 2 Weapon 1 | . . . 1 Parts Attached 29 | 7 6 10 6 Power 3 | 1 . 2 . Engine 2 | 1 . 1 . Core 1 | . . 1 . Reactor . | . . . . Propulsion 5 | 2 . 2 1 Treads 2 | 2 . . . Leg 3 | . . 2 1 Wheel . | . . . . Hover . | . . . . Flight . | . . . . Utility 8 | 2 1 2 3 Device 3 | 1 . 1 1 Storage 2 | 1 1 . . Processor . | . . . . Hackware . | . . . . Protection 3 | . . 1 2 Artifact . | . . . . Weapon 13 | 2 5 4 2 Energy Gun 7 | 2 3 1 1 Energy Cannon 2 | . . 1 1 Ballistic Gun . | . . . . Ballistic Cannon 1 | . . 1 . Launcher 2 | . 1 1 . Special Weapon . | . . . . Impact Weapon 1 | . 1 . . Slashing Weapon . | . . . . Piercing Weapon . | . . . . Special Melee Weapon . | . . . . Unidentified Prototypes . | . . . . Corrupted Parts 3 | . 1 1 1 System Corruption 21 | . 10 10 1 Parts Lost 19 | . 2 2 15 Power 3 | . 1 1 1 Propulsion 4 | . . 1 3 Utility 5 | . . . 5 Weapon 7 | . 1 . 6 Highest Loss Streak 11 | . 1 1 11 To Critical Strikes . | . . . . Average Backups 10 | . 8 14 5 Power . | . . . . Propulsion 1 | . . 1 . Utility 3 | . 2 5 2 Weapon 5 | . 4 7 1 Tool/Special . | . . . . Unused Backups 14 | . 4 7 3 Power . | . . . . Propulsion 3 | . . 2 1 Utility 4 | . 2 1 1 Weapon 6 | . 2 4 . Tool/Special 1 | . . . 1 Average Slot Usage (%) 91 | . 92 95 66 Engine 5 | . 8 2 6 Core 3 | . . 7 . Treads 15 | . 27 4 . Leg 10 | . . 22 12 Device 13 | . 14 13 11 Storage 13 | . 14 14 8 Energy Gun 9 | . 18 1 1 Ballistic Cannon 5 | . . 11 4 Launcher 3 | . 6 1 1 Impact Weapon 7 | . 2 14 8 Peak Build Rating 43 | 7 9 35 43 Average Rating 17 | 5 8 24 32 On Entrance 11 | . 7 9 31 Avg Prop Armor Cover (%) 12 | . . 12 . Naked Turns 15 | . . . 15 Heaviest Build 56 | 13 27 52 56 Greatest Support 49 | 40 40 40 49 Greatest Overweight (x) 8 | . 8 1 7 Average Overweight (x) . | . . . . Largest Inventory Capacity 15 | 8 15 15 15 Average Capacity 12 | 7 10 15 14 Most Carried 15 | 1 15 15 15 Average Carried 11 | . 8 14 11 Final Capacity 15 | 8 15 15 5 Final Carried 15 | 1 15 15 5 Class Distribution -------------------- 62% | Mutant 37% | Scavenger-Mutant Dominant Class ---------------- Mutant | -10/Materials Scavenger-Mutant | -10/Subcaves Scavenger-Mutant | -8/Materials Resources | -11 -10 -10 -8 ----------- Run | Yrd Mat Sub Mat Matter Collected 1009 | 270 286 356 97 Remotely . | . . . . Salvage Created 1207 | 81 773 128 225 Parts 76 | 6 53 7 10 Haulers Intercepted 2 | . 2 . . Recyclers Shooed 1 | . 1 . . Parts Field Recycled . | . . . . Retrieved Matter . | . . . . Parts Self-Destructed 5 | . . 5 . Prevented . | . . . . Parts Restored . | . . . . Kills | -11 -10 -10 -8 ------- Run | Yrd Mat Sub Mat Combat Hostiles Destroyed 29 | . 21 4 4 Guns 8 | . 8 . . Cannons 3 | . . 3 . AOE 16 | . 13 1 2 Classes Destroyed 10 | 2 8 . . Worker 2 | . 1 . 1 Builder 2 | . 1 . 1 Tunneler 1 | 1 . . . Hauler 2 | . 2 . . Recycler 2 | 1 1 . . Operator 2 | . 1 . 1 Watcher 2 | . 1 . 1 Swarmer 12 | . 12 . . Grunt 10 | . 6 . 4 Subdweller 7 | . 3 4 . Best Kill Streak 16 | 2 16 1 7 Combat Bots Only 7 | . 7 1 2 Max Kills in Single Turn 5 | 1 5 1 2 Gunslinging . | . . . . Exploded 4 | . 4 1 1 Melee . | . . . . Uniques/NPCs Destroyed . | . . . . Combat | -11 -10 -10 -8 -------- Run | Yrd Mat Sub Mat Hostile Shots Fired 196 | . 55 16 125 Missed 42 | . 14 5 23 Hits 154 | . 41 11 102 Projectile 154 | . 41 11 102 Critical Strikes 5 | . . . 5 Damage Taken 2484 | . 479 385 1620 Core 697 | . 67 78 552 Absorbed by Shields . | . . . . Core Remaining (%) 71 | 100 . 42 . Volleys Fired 68 | 3 29 23 13 Largest 2 | 2 2 1 2 Hottest 113 | 90 90 48 113 Shots Fired 108 | 6 56 24 22 Gun 57 | 6 50 . 1 Cannon 39 | . . 21 18 Launcher 12 | . 6 3 3 Special . | . . . . Kinetic 31 | . . 21 10 Thermal 14 | 3 2 . 9 Explosive 12 | . 6 3 3 Electromagnetic 51 | 3 48 . . Robot Hit Streak 12 | 2 12 3 2 Robot Miss Streak 8 | 1 8 3 4 Penetration Max . | . . . . Secondary Targets . | . . . . Shots Hit Robots 69 | 4 35 13 17 Core Hits 66 | 2 49 5 10 Critical Kills 2 | . . 2 . Critical Parts Destroyed 5 | . . 2 3 Critical Strikes 10 | . . 7 3 Destroy 8 | . . 7 1 Smash 2 | . . . 2 Melee Attacks 19 | . 1 4 14 Impact 19 | . 1 4 14 Slashing . | . . . . Piercing . | . . . . Sneak Attacks 1 | . . . 1 Combat Hostiles . | . . . . Follow-up Attacks . | . . . . Damage Inflicted 2994 | 76 1382 443 1093 Guns 502 | 40 462 . . Cannons 441 | . . 255 186 Explosions 1664 | 36 915 188 525 Melee 382 | . . . 382 Ramming 5 | . 5 . . Kinetic 334 | . . 255 79 Thermal 423 | 49 92 . 282 Explosive 914 | . 376 188 350 Electromagnetic 936 | 27 909 . . Impact 382 | . . . 382 Slashing . | . . . . Piercing . | . . . . Highest Corruption 21 | . 11 21 3 Average Corruption 10 | . 10 11 2 Corruption Purged . | . . . . Corruption Blocked . | . . . . Effects 59 | . 23 34 2 Message Errors 11 | . 4 6 1 Matter Fused 14 | . 6 8 . Heat Flow Errors 8 | . 1 7 . Energy Discharges 4 | . 3 1 . Parts Rejected 2 | . 2 . . Parts Fused 1 | . 1 . . Data Loss (minor) 9 | . 3 6 . Data Loss (major) 6 | . 2 4 . Misfires 3 | . 1 1 1 Alerts 1 | . . 1 . Overload Shots . | . . . . Overflow Damage 220 | . 11 . 209 Projectiles . | . . . . Explosions 83 | . 11 . 72 Melee 137 | . . . 137 Knockbacks 7 | . . 4 3 Impact 2 | . . . 2 Kinetic 5 | . . 4 1 Secondary . | . . . . Self-Inflicted Damage 71 | . 71 . . Shots 2 | . 2 . . Rammed 2 | . 2 . . Targets Rammed 2 | . 2 . . Kicked . | . . . . Crushed . | . . . . Highest Temperature 475 | 90 180 257 475 Average Temperature 123 | 48 49 120 265 Received Heat Transfer 969 | . 96 63 810 Effects 11 | . . . 11 Shutdowns 3 | . . . 3 Energy Bleed 2 | . . . 2 Damage (minor) 2 | . . . 2 Damage (major) 4 | . . . 4 Siege Activations . | . . . . Martial Activations . | . . . . Shielding Activations . | . . . . Robots Disrupted 1 | . 1 . . Combat Hostiles . | . . . . Robots Corrupted 3 | . . . 3 Combat Hostiles 2 | . . . 2 Parts Fried 3 | . 1 . 2 Impact Corruptions 5 | . . . 5 Robots Melted . | . . . . Combat Hostiles . | . . . . Parts Melted . | . . . . Heat Transferred 472 | 37 187 . 248 Parts Sabotaged . | . . . . Parts Stolen . | . . . . Parts Stripped . | . . . . Power Chain Reactions 3 | 1 2 . . Alert | -11 -10 -10 -8 ------- Run | Yrd Mat Sub Mat Maximum Alert Level 2 | . 2 . . Low Security (%) 79 | 100 73 . 100 Level 1 14 | . 19 . . Level 2 5 | . 6 . . Level 3 . | . . . . Level 4 . | . . . . Level 5 . | . . . . High Security . | . . . . Max Security . | . . . . Peak Influence 430 | 5 430 . 94 Initial . | . . . . Average 95 | . 117 . 29 Influence Increases 951 | 10 667 . 274 Destroy 0b10 Robot/C 440 | . 360 . 80 Destroy 0b10 Robot/NC 65 | 10 35 . 20 Destroy Leader 88 | . 66 . 22 Disable Machine 240 | . 180 . 60 Destroy Structure 73 | . 26 . 47 Lose Combat Pursuer 45 | . . . 45 Influence Decreases 912 | 10 667 . 235 Time Decay 442 | 10 347 . 85 Lost Part 170 | . 20 . 150 Purge Threat 300 | . 300 . . Squads Dispatched 3 | . 2 . 1 Investigation . | . . . . Extermination . | . . . . Reinforcement 3 | . 2 . 1 Assault . | . . . . Garrison . | . . . . Intercept . | . . . . Searches Triggered . | . . . . Construction Impeded . | . . . . Haulers Reinforced . | . . . . Active Scanning Responses . | . . . . Cargo Convoy Interrupts . | . . . . Stealth | -11 -10 -10 -8 --------- Run | Yrd Mat Sub Mat Distress Signals 8 | . 3 . 5 Communications Jammed . | . . . . Distress Signals . | . . . . Times Spotted 54 | . 27 12 15 Peak Tracking Total 8 | . 5 4 8 Tactical Retreats 3 | . . . 3 Traps | -11 -10 -10 -8 ------- Run | Yrd Mat Sub Mat Traps Triggered 9 | . 5 3 1 Indirectly . | . . . . Trap Hack Attempts . | . . . . Triggered . | . . . . Disarmed . | . . . . Reprogrammed . | . . . . Reused . | . . . . Traps Extracted . | . . . . Installed . | . . . . Triggered . | . . . . Machines | -11 -10 -10 -8 ---------- Run | Yrd Mat Sub Mat Machines Disabled 17 | . 12 1 4 Max in Single Turn 3 | . 3 1 2 Machines Repaired . | . . . . Machines Dismantled . | . . . . Machines Sabotaged . | . . . . Overloaded Fab Kills . | . . . . Hacking | -11 -10 -10 -8 --------- Run | Yrd Mat Sub Mat Machines Accessed 4 | . 4 . . Terminals 4 | . 4 . . Fabricators . | . . . . Repair Stations . | . . . . Recycling Units . | . . . . Scanalyzers . | . . . . Garrison Access . | . . . . Total Hacks 8 | . 8 . . Successful 4 | . 4 . . Failed 4 | . 4 . . Catastrophic 2 | . 2 . . Database Lockouts . | . . . . Manual . | . . . . Terminals 8 | . 8 . . Fabricators . | . . . . Repair Stations . | . . . . Recycling Units . | . . . . Scanalyzers . | . . . . Garrison Access . | . . . . Terminal Hacks 4 | . 4 . . Unreport Threat 2 | . 2 . . Hauler Manifests 2 | . 2 . . Fabricator Hacks . | . . . . Repair Station Hacks . | . . . . Recycling Unit Hacks . | . . . . Scanalyzer . | . . . . Garrison Access Hacks . | . . . . Unauthorized Hacks . | . . . . Terminals . | . . . . Fabricators . | . . . . Repair Stations . | . . . . Recycling Units . | . . . . Scanalyzers . | . . . . Garrison Access . | . . . . Data Cores Recovered . | . . . . Used . | . . . . Hacking Detections 2 | . 2 . . Full Trace Events . | . . . . Feedback Events . | . . . . Feedback Blocked . | . . . . Robot Schematics Acquired . | . . . . Robots Built . | . . . . Authchips . | . . . . Time . | . . . . Total Robot Build Rating . | . . . . Part Schematics Acquired . | . . . . Parts Built . | . . . . Authchips . | . . . . Time . | . . . . Total Part Build Rating . | . . . . Part Studies Acquired . | . . . . Parts Repaired . | . . . . Time . | . . . . Parts Recycled . | . . . . Recycled Matter . | . . . . Retrieved Matter . | . . . . Retrieved Components . | . . . . Parts Scanalyzed . | . . . . Part Schematics Acquired . | . . . . Parts Damaged . | . . . . Bothacking | -11 -10 -10 -8 ------------ Run | Yrd Mat Sub Mat Used RIF Installer . | . . . . Robots Hacked . | . . . . Non-combat . | . . . . Combat . | . . . . Robot Hacks Applied . | . . . . Relay Couplers Released . | . . . . Fabnet Peak Effective % . | . . . . Robots Rewired . | . . . . Allies Hacked . | . . . . Hacks Repelled . | . . . . Allies | -11 -10 -10 -8 -------- Run | Yrd Mat Sub Mat Total Allies . | . . . . Largest Group . | . . . . Highest-Rated Group . | . . . . Highest-Rated Ally . | . . . . Total Orders . | . . . . Ally Attacks . | . . . . Total Damage . | . . . . Kills . | . . . . Allies Corrupted . | . . . . Allies Melted . | . . . . Intel | -11 -10 -10 -8 ------- Run | Yrd Mat Sub Mat Active Infowar (turns) 2304 | 33 1150 970 151 Sensors 1018 | . . 867 151 Seismic 1286 | 33 1150 103 . Robot Analysis Total . | . . . . Derelict Logs Recovered . | . . . . Drone Launches . | . . . . Drone Recoveries . | . . . . Exploration | -11 -10 -10 -8 ------------- Run | Yrd Mat Sub Mat Turns Passed 2498 | 88 1150 995 265 Spaces Moved 1274 | 45 624 491 114 Core 37 | 3 1 . 33 Treads 752 | 42 623 87 . Legs 485 | . . 404 81 Wheels . | . . . . Hover . | . . . . Flight . | . . . . Fastest Speed 50 | 50 160 120 50 Average Speed 168 | 152 160 183 152 Slowest Speed 450 | 160 450 190 400 Overloaded Moves . | . . . . Propulsion Burnouts . | . . . . Robots Hopped . | . . . . Potential Cave-ins . | . . . . Cave-ins Triggered . | . . . . Exploration Rate (%) 38 | 3 85 50 14 Regions Visited 3 Branch Regions 1 Pre-discovered Areas . | . . . . Known Exits Taken . | . . . . Unknown Exits Taken 3 | 1 1 1 . Scrap Searched 1 | . . 1 . Spaces Dug . | . . . . Terrain Destroyed 106 | 5 25 29 47 Melee . | . . . . Projectile 13 | . . 7 6 AOE 93 | 5 25 22 41 Terrain Rammed . | . . . . Walls Destroyed . | . . . . Machines Disabled . | . . . . Actions | -11 -10 -10 -8 --------- Run | Yrd Mat Sub Mat Total 1470 | 55 709 549 157 Wait 18 | . 9 7 2 Move 1271 | 44 623 490 114 Hop . | . . . . Pick Up 25 | 1 20 3 1 Fast Attach 26 | 7 12 3 4 Attach 6 | . 1 . 5 Detach . | . . . . Swap 17 | . 5 10 2 Drop 18 | . 7 9 2 Fire 68 | 3 29 23 13 Melee 19 | . 1 4 14 Ram . | . . . . Kick . | . . . . Crush 2 | . 2 . . Escape Stasis . | . . . . Rewire . | . . . . Trap . | . . . . Miscellaneous . | . . . . Route ------- -11/Scrapyard -10/Materials (discovered 4 exits: [*Mat x2] / [*Min] / [*Sub]) -10/Subcaves (discovered 2 exits: [*Mat x2]) -8/Materials History --------- Turn | Location | Event 34 | -11/Scrapyard | Discovered new exit (range 14) 89 | -11/Scrapyard | Entered Materials 229 | -10/Materials | Discovered new exit (range 7) 308 | -10/Materials | Build established: Mutant 371 | -10/Materials | Discovered new exit (range 8) 522 | -10/Materials | Discovered new exit (range 7) 589 | -10/Materials | Derelicts attacked the area 671 | -10/Materials | System corruption reached 10% 716 | -10/Materials | Destroyed 7 combat bots 1065 | -10/Materials | Discovered new exit (range 16) 1239 | -10/Materials | Entered Subcaves 1272 | -10/Subcaves | Ambushed by Subdwellers from Twisted Machinery 1362 | -10/Subcaves | Ambushed by swarm of Subdwellers 1576 | -10/Subcaves | Discovered new exit (range 9) 1751 | -10/Subcaves | Build established: Scavenger-Mutant 1967 | -10/Subcaves | Ambushed by Subdweller buried in earth 1968 | -10/Subcaves | Core integrity fell below 50% 2100 | -10/Subcaves | Discovered new exit (range 13) 2135 | -10/Subcaves | Visited 4L-MR0's lab 2153 | -10/Subcaves | Found Prototype Special Melee Weapon 2163 | -10/Subcaves | Found Prototype Flight Unit 2234 | -10/Subcaves | Entered Materials 2234 | -8/Materials | Evolved 4 slots: Propulsion x1, Utility x2, Weapon x1 2455 | -8/Materials | Lost 11 parts (1p2n4u4w) 2472 | -8/Materials | Core integrity fell below 50% 2485 | -8/Materials | Core integrity fell below 20% 2499 | -8/Materials | Destroyed by S-10 Pest with Light Assault Rifle Last Messages --------------- 02462_ Hvy. Laser destroyed. 02468_ Adv. Weight Redist. System destroyed. 02469_ G-47 Trooper knocked back. 02471_ Penetrated by Slug. 02476_ Destroyed Imp. Heat Sink. 02476_ G-47 Trooper system corrupted by crushing effect. 02477_ Penetrated by Slug. 02479_ Dropped Lrg. Storage Unit. 02482_ G-47 Trooper misfires. 02482_ Dropped Prototype Flight Unit. 02483_ Acquired Prototype Special Melee Weapon. 02484_ Mace destroyed. 02484_ Penetrated by Slug. 02486_ R-06 Scavenger collects Lrg. Storage Unit. 02490_ R-06 Scavenger collects Prototype Flight Unit. 02490_ U-05 Engineer builds a Wall. 02491_ Slug penetrates Terminal. Map ----- +----------------------------------------------------+ | ?????????????????????????????????????????????????? | | ?????????????????????????????????????????????????? | | ?????????????????????????????????????????????????? | | ?????????????????????????????????????????????????? | | ?????????????????????????????????????????????????? | | ?????????????????????????????????????????????????? | | ?????????????????????????????????????????????????? | | ?????????????????????????????????????????????????? | | ?????????????????????????????????????????????????? | | ?????????????????????????????????????????????????? | | ?? ????????????????????????????????????????????? | | ## ????????????????????????????????????????????? | | ????????????????????????????????????????????? | | ????????????????????????????????????????????? | | " #???????????????????????????????????????????? | | " #???????????????????????????????????????????? | | " ###""???????????????????????????????????????? | | # ] ?????????????????????????????????????? | | ? # " ??????????????????????????????????? | | ?# + " ??????????????????????????????????? | | ?# # " ??????????????????????????????????? | | ?# # " ???????????????????????????????????? | | ?# # % "????????????????????????????????????? | | ?# ############+###############+### +????????? | | ?# #????????? | | ?# @ #????????? | | ?# "" ss s #????????? | | ?# "" #########+####### s ####w #????????? | | ## "T #?????? ????? #???????????????? | | ## " ###?? #????? !#???????????????? | | # " ## #??????!!!##???????????????? | | ## % + #???????###????????????????? | | ## ## """ #??????????????????????????? | | ## !###### ## """ #??????????????????????????? | | # # ####+## """ #??????????????????????????? | | ## # # """ #??????????????????????????? | | ## #%! % " # ??? #??????????????????????????? | | ## %# "" #????#####??????????????????????????? | | ## + """ #???????????????????????????????????? | | ## %# #???????????????????????????????????? | | ##^ ^# ! !#???????????????????????????????????? | | ?# ###########?????????????????????????????????? | | ?# # #?????????????????????????????????? | | ?# # """ #?????????????????????????????????? | | ?# # """""#?????????????????????????????????? | | ?# # """""#?????????????????????????????????? | | ?# # ! """""#?????????????????????????????????? | | ## # """ #?????????????????????????????????? | | # # #?????????????????????????????????? | | # # #?????????????????????????????????? | +----------------------------------------------------+ Best States ------------- Heat Dissipation 31 Energy Generation 19 Energy Capacity 315 Matter Stores 300 Matter Capacity 300 Sight Range 16 Robot Scan Range 14 Terrain Scan Density 10 Additional Mass Support 9 Armor Coverage 450 Evasion (%) 55 Recoil Reduction 2 Item Schematics ----------------- None Robot Schematics ------------------ None Fabricated ------------ Nothing Repaired ---------- Nothing Studied --------- None Alien Tech Used ----------------- None Achievements -------------- None Challenges ------------ None Game ------ Seed SixAluminumDriver Manual? 0 Play Time 00:16:56 Cumulative 159.6 hours Start 2026.04.29 @ 23:20:04 End 2026.04.29 @ 23:34:05 Sessions 1 Manual Loads 0 Difficulty Rogue Special Mode None Game No. 245 Rogue 245 Adventurer 0 Explorer 0 Win Type - Total 1 Types 1/0/0/0/0/0/0/0/0/0 Lore% 54 Gallery% 56 Achievement% 43 Wizard Run 0 Options --------- Layout 1 ASCII 0 Keyboard 1 Movement Arrows Keybinds 0 Fullscreen 1 Font 24/Smallcaps Map View 50x35 Zoom Use 0% Tactical HUD 1 Map Filters NONE Filters NONE Steam 1 RUN: 2d2b1f62-2cc9-47e7-b42e-4a611a091bbc